bitfinex-derivatives/quotes_ETHF0:USTF0_20251007
["timestamp","ask_amount","ask_price","bid_price","bid_amount"]
[1759842088527,0.00154405,4743.1,4743.0,6.39234]
[1759842088720,0.37913,4744.3,4744.2,0.365]
[1759842088924,0.46803,4744.3,4744.2,0.213]
[1759842089832,0.46982511,4744.3,4744.2,0.213]
[1759842091234,0.75442511,4744.3,4744.2,0.213]
[1759842091427,0.28639511,4744.3,4744.2,0.8359]
[1759842091736,0.75442511,4744.3,4744.2,0.213]
[1759842092433,0.66552511,4744.3,4744.2,0.578]
[1759842092638,0.28639511,4744.3,4744.2,4.0437]
[1759842092828,0.14409511,4744.3,4744.2,4.2875]
[1759842093033,0.28639511,4744.3,4744.2,4.0428]
[1759842093333,0.00179511,4744.3,4744.2,4.2818]
[1759842093633,0.0757,4745.3,4744.2,4.2818]
[1759842093634,0.37905,4745.3,4744.7,0.3917]
[1759842093832,0.37905,4745.3,4745.1,0.3917]
[1759842094031,0.37905,4745.3,4745.2,0.6047]
[1759842094227,0.37905,4745.3,4745.2,41.4047]
[1759842094433,3.2835,4745.7,4745.3,0.3917]
[1759842094735,0.07809833,4745.7,4745.2,41.013]
[1759842094934,0.00239833,4745.7,4745.6,0.3917]
[1759842095233,0.00239833,4745.7,4745.6,3.8125]
[1759842096037,0.94712,4747.9,4746.6,0.3917]
[1759842096038,3.2835,4747.2,4746.6,0.3917]
[1759842096235,3.2835,4747.2,4746.9,0.37892]
[1759842096236,0.45462,4747.0,4746.9,0.37892]
[1759842096436,0.47907995,4747.0,4746.9,0.77062]
[1759842096634,3.2078,4747.2,4747.1,0.77061]
[1759842096836,3.2078,4747.2,4747.1,0.6047]
[1759842096837,3.68686169,4747.2,4747.1,0.6047]
[1759842097029,3.68952498,4747.2,4747.1,0.60723286]
[1759842097840,3.76522498,4747.2,4747.1,0.21553286]
[1759842099848,1.89456,4747.1,4746.6,40.8]
[1759842100044,1.89456,4747.1,4745.1,0.94766]
[1759842100045,1.89477,4746.6,4744.8,0.3905]
[1759842100241,0.38379,4744.9,4744.7,3.2078]
[1759842100544,0.0047,4744.7,4744.0,0.1475]
[1759842100740,0.94778,4744.6,4744.1,0.213]
[1759842100938,3.59164,4744.2,4744.1,0.213]
[1759842101143,0.38386,4744.0,4743.9,0.00190176]
[1759842101342,0.86293849,4744.0,4743.9,0.00190176]
[1759842103144,0.47907849,4744.0,4743.9,0.39240176]
[1759842103349,0.0047,4744.0,4743.9,0.00190176]
[1759842103749,0.48363796,4744.0,4743.9,0.00190176]
[1759842104740,5.47893796,4744.0,4743.6,0.213]
[1759842104943,0.38201,4743.3,4743.2,3.2078]
[1759842105144,0.38201,4743.3,4743.2,0.213]
[1759842105545,0.37923,4743.1,4742.9,0.41158437]
[1759842105749,0.38147185,4743.1,4743.0,0.213]
[1759842105956,0.38147185,4743.1,4743.0,0.6035]
[1759842106145,0.38147185,4743.1,4742.9,0.02327117]
[1759842106448,0.38147185,4743.1,4742.9,0.62677117]
[1759842106847,0.38147185,4743.1,4742.9,0.23627117]
[1759842107049,0.0028,4743.0,4742.9,0.23627117]
[1759842107942,0.0028,4743.0,4742.9,0.02327117]
[1759842108752,0.37928,4742.5,4742.3,0.3905]
[1759842109450,0.37928,4742.5,4742.4,0.213]
[1759842109651,0.37928,4742.5,4742.4,0.21520791]
[1759842110147,0.37928,4742.5,4742.4,0.00220791]
[1759842110450,0.37933,4741.9,4741.3,0.98287]
[1759842110753,4.36898,4742.7,4741.3,0.98287]
[1759842110754,3.2078,4742.2,4741.5,0.1475]
[1759842110946,0.37934,4741.7,4741.5,0.538]
[1759842111146,0.37936,4741.5,4741.3,0.213]
[1759842111351,0.37936,4741.5,4741.4,0.00196178]
[1759842112345,3.2078,4742.2,4741.5,0.1475]
[1759842112555,0.213,4742.1,4741.2,3.2078]
[1759842112855,0.37941,4740.9,4740.8,0.213]
[1759842113553,0.37941,4740.9,4740.8,0.21477501]
[1759842114447,0.37937,4741.4,4740.9,0.3905]
[1759842114651,0.37937,4741.4,4741.1,0.3905]
[1759842114951,0.37936,4741.5,4741.2,3.4208]
[1759842115158,0.37937,4741.4,4741.3,0.3905]
[1759842115452,3.2078,4742.2,4741.3,0.3905]
[1759842115453,0.37936,4741.5,4741.3,0.6035]
[1759842115754,0.37936,4741.5,4741.3,0.213]
[1759842115961,0.3794,4741.0,4740.8,0.39227501]
[1759842116253,0.94836,4741.7,4741.0,0.538]
[1759842116254,3.2078,4741.7,4741.0,0.538]
[1759842116446,0.37934,4741.8,4741.3,3.2078]
[1759842116654,0.37934,4741.7,4741.5,0.1475]
[1759842116852,2.75532033,4742.5,4741.6,0.76985]
[1759842117051,3.2078,4742.6,4741.7,0.213]
[1759842117252,0.37933,4741.9,4741.7,0.213]
[1759842117555,0.37936,4741.5,4741.4,0.213]
[1759842117848,2.72352085,4742.1,4741.4,0.213]
[1759842118050,0.37934,4741.7,4741.5,0.3905]
[1759842118245,0.94828,4742.1,4741.0,0.538]
[1759842118447,0.94822,4742.4,4741.3,3.5983]
[1759842118743,0.37934,4741.7,4741.6,0.3905]
[1759842118943,3.2078,4742.5,4741.8,0.37933]
[1759842119151,0.3793,4742.2,4742.0,0.1475]
[1759842119450,3.2078,4743.0,4742.1,0.213]
[1759842119650,0.00224185,4743.1,4742.2,0.3905]
[1759842119850,0.37927,4742.6,4742.2,0.3905]
[1759842120360,0.00224185,4743.1,4742.4,0.37928]
[1759842120656,0.00224185,4743.1,4742.5,0.3605]
[1759842120657,0.37925,4742.8,4742.5,0.3605]
[1759842120860,0.00224185,4743.1,4742.7,0.3905]
[1759842121156,0.37925,4742.8,4742.6,0.3905]
[1759842121358,0.37927,4742.6,4742.5,0.213]
[1759842121756,0.37931,4742.1,4742.0,3.3553]
[1759842121955,0.37931,4742.1,4742.0,3.5683]
[1759842122159,0.37931,4742.1,4742.0,0.213]
[1759842122662,0.37935,4741.6,4741.4,3.2078]
[1759842122959,0.37935,4741.6,4741.5,0.213]
[1759842123457,0.37933,4741.9,4741.5,0.3615]
[1759842123658,4.156,4742.5,4741.6,0.3659]
[1759842123857,0.37933,4741.9,4741.7,0.213]
[1759842124257,0.37936,4741.5,4741.4,3.2078]
[1759842124459,0.37936,4741.5,4741.4,3.4208]
[1759842124758,0.37933,4741.9,4741.5,0.1485]
[1759842125059,0.37934,4741.7,4741.6,0.3659]
[1759842125455,0.37936,4741.5,4741.4,3.4208]
[1759842125854,0.37934,4741.7,4741.4,4.16606]
[1759842126159,0.3794,4741.0,4740.8,0.00177501]
[1759842126350,2.69006397,4741.6,4741.5,0.1485]
[1759842126549,3.2078,4742.5,4741.6,0.3659]
[1759842126857,3.2078,4742.5,4741.5,0.3615]
[1759842127055,3.2078,4742.5,4741.5,0.7274]
[1759842127359,0.37934,4741.7,4741.5,0.7274]
[1759842127552,0.37934,4741.7,4741.5,0.213]
[1759842127754,0.94835,4741.8,4741.1,40.8]
[1759842128061,0.37937,4741.3,4741.2,0.5789]
[1759842128262,0.37937,4741.3,4741.2,0.3659]
[1759842128448,0.37937,4741.3,4741.2,0.5789]
[1759842128952,0.37937,4741.4,4741.2,0.5789]
[1759842129355,0.37937,4741.4,4741.3,0.213]
[1759842129561,0.37937,4741.4,4741.2,0.3659]
[1759842129962,0.37939,4741.1,4741.0,0.5144]
[1759842130149,0.37939,4741.1,4741.0,0.7274]
[1759842130561,0.37938,4741.3,4741.1,0.3659]
[1759842130758,3.2078,4742.0,4741.2,0.213]
[1759842130964,3.2078,4742.0,4741.6,0.3659]
[1759842131258,0.37934,4741.8,4741.7,0.5789]
[1759842131957,0.37934,4741.8,4741.7,0.213]
[1759842132164,3.2078,4742.5,4741.5,0.1485]
[1759842132361,3.2078,4742.5,4740.9,0.9485]
[1759842132362,3.2078,4741.6,4740.5,0.1485]
[1759842132558,3.58719,4741.1,4740.5,0.1485]
[1759842132755,0.47928075,4741.1,4740.9,0.092]
[1759842133061,0.37937,4741.4,4740.9,0.4714]
[1759842133356,0.37937,4741.4,4741.0,0.5298323]
[1759842133561,3.58715,4741.6,4741.1,0.37939]
[1759842133757,3.2078,4741.6,4741.1,0.37939]
[1759842134153,0.37938,4741.3,4741.0,0.1504423]
[1759842134358,0.37936,4741.5,4741.0,0.1504423]
[1759842134560,0.37936,4741.5,4741.3,0.3659]
[1759842134862,0.37936,4741.5,4741.4,0.5789]
[1759842135057,3.2078,4741.6,4741.4,0.5789]
[1759842135058,3.2078,4741.6,4741.4,0.213]
[1759842135266,3.2078,4741.6,4741.5,0.3659]
[1759842136065,3.2078,4742.2,4742.0,0.1485]
[1759842136267,3.5871,4742.2,4742.1,0.3659]
[1759842138961,3.2078,4742.2,4742.1,0.3659]
[1759842139161,0.37928,4742.5,4742.1,0.3793]
[1759842139365,3.2078,4742.7,4742.6,0.3659]
[1759842140067,3.2078,4742.7,4742.6,0.5789]
[1759842140372,0.38147185,4743.1,4743.0,0.5144]
[1759842142573,0.37927,4742.6,4742.5,0.1485]
[1759842142762,3.58707,4742.6,4742.5,0.1485]
[1759842144374,0.38147185,4743.1,4743.0,0.1485]
[1759842144577,0.38147185,4743.1,4743.0,0.5144]
[1759842144976,0.85399738,4743.1,4743.0,0.5144]
[1759842145172,0.47476738,4743.1,4743.0,0.5144]
[1759842145580,0.00224185,4743.1,4743.0,4.5144]
[1759842145879,0.00224185,4743.1,4743.0,4.6629]
[1759842147670,0.00224185,4743.1,4743.0,5.0288]
[1759842148682,0.00224185,4743.1,4743.0,5.2418]
[1759842149383,0.21891,4743.9,4743.3,0.94802]
[1759842149572,0.21891,4743.9,4743.8,0.74507]
[1759842149771,0.21891,4743.9,4743.8,0.95807]
[1759842150170,0.21891,4743.9,4743.8,5.95807]
[1759842150372,3.58689,4744.9,4744.5,0.1485]
[1759842150572,0.4856,4744.8,4744.7,0.3659]
[1759842152980,3.21019227,4744.9,4744.7,0.3659]
[1759842153172,3.21019227,4744.9,4744.8,0.3741]
[1759842153676,0.00239227,4744.9,4744.8,5.3741]
[1759842153983,0.00239227,4744.9,4744.8,46.1741]
[1759842154282,3.2078,4746.8,4746.6,0.3741]
[1759842154478,3.2078,4747.7,4747.6,0.3741]
[1759842154673,3.67317488,4747.7,4747.6,0.3741]
[1759842154877,4.15877488,4747.7,4747.6,0.3741]
[1759842155073,4.53763488,4747.7,4747.6,0.3741]
[1759842155273,4.53960327,4747.7,4747.6,0.3741]
[1759842155580,4.16074327,4747.7,4747.6,0.3741]
[1759842155774,0.95294327,4747.7,4747.6,0.3741]
[1759842156181,0.48756839,4747.7,4747.6,0.3741]
[1759842159191,0.37891,4747.1,4747.0,0.1568]
[1759842159489,0.37895,4746.6,4746.5,0.1568]
[1759842159883,3.58675,4746.6,4746.5,0.15405864]
[1759842160084,0.37899,4746.1,4745.7,0.213]
[1759842160384,0.37903,4745.6,4745.5,0.1598]
[1759842161280,0.37903,4745.6,4745.5,0.5637]
[1759842162284,3.58683,4745.6,4745.5,0.1598]
[1759842162490,3.58683,4745.6,4745.5,0.5637]
[1759842164588,3.58683,4745.6,4745.0,0.1598]
[1759842164793,3.58687,4745.1,4745.0,0.1598]
[1759842165092,0.37911,4744.6,4744.5,0.56540069]
[1759842166597,3.58691,4744.6,4744.5,0.56540069]
[1759842166790,3.58691,4744.6,4744.5,0.16150069]
[1759842166990,3.58691,4744.6,4744.5,0.1598]
[1759842167991,0.37915,4744.1,4743.9,0.4039]
[1759842168186,0.37915,4744.1,4744.0,0.5637]
[1759842168899,0.38172006,4744.1,4744.0,0.56593274]
[1759842169699,3.2078,4744.6,4744.0,5.56593274]
[1759842169893,3.2078,4745.1,4745.0,0.5637]
[1759842170096,3.2078,4745.1,4745.0,0.1598]
[1759842170395,3.67286507,4745.1,4745.0,0.1598]
[1759842170793,3.67492421,4745.1,4745.0,0.5637]
[1759842171095,3.67492421,4745.1,4745.0,0.1598]
[1759842172000,3.20985914,4745.1,4745.0,0.1598]
[1759842172195,0.3791,4744.7,4744.6,0.4039]
[1759842174398,0.37919,4743.6,4743.3,0.4039]
[1759842174600,0.37919,4743.6,4743.5,0.5637]
[1759842175504,0.37919,4743.6,4743.5,0.56561506]
[1759842177506,0.37919,4743.6,4743.5,0.00191506]
[1759842177703,0.37919,4743.6,4743.5,0.16171506]
[1759842177905,4.15577,4743.7,4743.0,0.1598]
[1759842178106,0.37923,4743.1,4743.0,0.1598]
[1759842178404,0.37925,4742.8,4742.7,0.4039]
[1759842179005,0.948,4743.5,4743.0,0.1598]
[1759842179200,0.948,4743.5,4743.1,0.4039]
[1759842179507,0.37922,4743.2,4743.0,0.1598]
[1759842179707,0.37922,4743.2,4743.1,0.4039]
[1759842180908,3.58698,4743.7,4743.6,0.4039]
[1759842181108,3.2078,4743.7,4743.6,0.4039]
[1759842181508,3.2078,4743.7,4743.6,0.5809]
[1759842181704,0.37918,4743.8,4743.6,0.4039]
[1759842182100,3.2078,4744.3,4743.5,0.7767]
[1759842182300,0.37916,4744.0,4743.9,0.4039]
[1759842183412,0.37916,4744.0,4743.5,0.1598]
[1759842183413,0.37919,4743.6,4743.5,0.1598]
[1759842183610,0.37919,4743.6,4743.5,0.5439]
[1759842183811,3.58699,4743.6,4743.5,0.5439]
[1759842184616,0.94804,4743.3,4742.8,0.3841]
[1759842184803,0.37924,4742.9,4742.4,0.3841]
[1759842185315,0.37924,4742.9,4742.7,0.38570276]
[1759842185711,0.37924,4742.9,4742.7,0.00160276]
[1759842186209,0.37924,4742.9,4742.7,2.76e-06]
[1759842186413,0.37927,4742.6,4742.5,0.1598]
[1759842186714,0.37927,4742.6,4742.5,0.5439]
[1759842187408,0.37927,4742.6,4742.5,0.54661103]
[1759842187811,0.37927,4742.6,4742.5,0.16251103]
[1759842188010,3.58707,4742.6,4742.5,0.16251103]
[1759842188311,0.37928,4742.4,4742.3,0.129]
[1759842188717,0.37928,4742.4,4742.3,0.5131]
[1759842189212,0.37928,4742.4,4742.3,0.51528797]
[1759842189516,0.37928,4742.4,4742.0,0.1598]
[1759842189517,0.37931,4742.1,4742.0,0.1598]
[1759842189912,0.37931,4742.1,4741.5,3.3668]
[1759842189913,0.37935,4741.6,4741.5,3.7509]
[1759842190615,0.38128045,4741.6,4741.5,3.75343466]
[1759842191117,7.68858138,4741.6,4741.0,0.5431]
[1759842191314,3.58719,4741.1,4741.0,0.5431]
[1759842191616,4.05348066,4741.1,4741.0,0.5431]
[1759842191817,3.58719,4741.1,4741.0,0.5431]
[1759842192210,3.58719,4741.1,4741.0,0.54501876]
[1759842192612,4.05329914,4741.1,4741.0,0.54501876]
[1759842193115,0.00193045,4741.6,4741.5,0.5431]
[1759842193116,3.20973045,4741.6,4741.5,0.5431]
[1759842193716,0.37943,4740.6,4740.0,0.159]
[1759842193918,3.58723,4740.6,4740.0,0.159]
[1759842194418,3.2078,4740.6,4740.0,0.159]
[1759842194726,3.2078,4740.6,4740.5,0.16061714]
[1759842194918,3.2078,4740.6,4740.5,0.37361714]
[1759842195616,3.58723,4740.6,4740.5,0.54471714]
[1759842196021,8.58723,4740.6,4740.5,0.54471714]
[1759842196321,11.7858148,4740.6,4740.5,0.54471714]
[1759842196716,0.37947,4740.1,4740.0,0.159]
[1759842196916,3.2078,4740.1,4740.0,0.159]
[1759842197126,3.2078,4740.1,4740.0,5.53848]
[1759842197324,3.2078,4740.7,4740.5,0.159]
[1759842197518,3.2078,4740.7,4740.6,0.213]
[1759842197719,3.2078,4740.7,4740.6,0.00161799]
[1759842197918,3.2078,4741.2,4741.0,0.159]
[1759842198224,5.91739017,4741.2,4741.0,0.159]
[1759842198815,6.29677017,4741.2,4741.0,0.159]
[1759842199027,6.29677017,4741.2,4741.1,0.3841]
[1759842199224,11.76215443,4741.2,4741.0,0.159]
[1759842199525,5.67831896,4741.1,4741.0,0.159]
[1759842199917,8.47905464,4741.1,4741.0,0.159]
[1759842200119,9.42754464,4741.1,4740.6,0.00161799]
[1759842200419,3.2078,4740.7,4740.6,0.38571799]
[1759842200824,0.95031045,4741.6,4741.1,0.3841]
[1759842200825,3.2078,4741.2,4741.1,0.3841]
[1759842204827,4.05305782,4741.2,4741.1,0.3841]
[1759842205130,3.58718,4741.2,4741.1,0.3841]
[1759842205524,3.2078,4741.2,4741.1,0.3841]
[1759842206123,3.67376591,4741.2,4741.1,0.3841]
[1759842206724,3.88676591,4741.2,4741.1,0.3841]
[1759842208824,0.00193045,4741.6,4741.2,0.37938]
[1759842209128,0.00193045,4741.6,4741.5,0.92246]
[1759842209324,3.2078,4742.9,4742.5,0.159]
[1759842209530,0.4660724,4742.8,4742.6,0.3841]
[1759842209724,0.4660724,4742.7,4742.6,0.3841]
[1759842209924,3.2078,4742.9,4742.6,0.3841]
[1759842210127,0.4660545,4742.8,4742.7,0.3841]
[1759842210328,0.46817662,4742.8,4742.7,0.3841]
[1759842210527,0.00212212,4742.8,4742.7,0.3841]
[1759842211931,0.46834858,4742.8,4742.7,0.3841]
[1759842212727,0.00212212,4742.8,4742.7,5.3841]
[1759842212932,0.00212212,4742.8,4742.7,0.5971]
[1759842213931,0.00212212,4742.8,4742.7,5.5971]
[1759842214633,3.2078,4743.9,4743.7,0.78568]
[1759842214829,0.46653312,4743.8,4743.6,0.4065]
[1759842215030,3.2078,4743.9,4743.6,0.4065]
[1759842215226,0.46653308,4743.8,4743.6,0.37918]
[1759842215532,3.2078,4743.9,4743.8,0.4065]
[1759842215832,3.67667409,4743.9,4743.8,0.4065]
[1759842217127,4.05583409,4743.9,4743.8,0.4065]
[1759842217342,4.05583409,4743.9,4743.5,0.3732]
[1759842217343,0.37919,4743.6,4743.5,0.1602]
[1759842217537,0.37921,4743.3,4743.0,0.1602]
[1759842217729,3.2078,4743.1,4743.0,0.5667]
[1759842218137,3.67393032,4743.1,4743.0,0.5667]
[1759842218435,6.35680794,4743.1,4743.0,0.1602]
[1759842218735,6.35680794,4743.1,4743.0,0.5553]
[1759842220730,3.67393032,4743.1,4743.0,0.5553]
[1759842221048,3.2078,4743.1,4743.0,0.5553]
[1759842228960,6.1226002,4743.1,4743.0,0.5553]
[1759842229147,3.67392195,4743.1,4743.0,0.5553]
[1759842229554,3.2078,4743.1,4743.0,0.5553]
[1759842230355,3.67429688,4743.1,4743.0,0.5553]
[1759842231360,3.2078,4743.1,4743.0,0.5553]
[1759842231751,3.67440834,4743.1,4743.0,0.5553]
[1759842232660,6.69021293,4743.1,4743.0,0.5553]
[1759842234455,6.47721293,4743.1,4743.0,0.5553]
[1759842234660,3.88740834,4743.1,4743.0,0.5553]
[1759842234962,6.67248539,4743.1,4743.0,0.1602]
[1759842235161,0.37927,4742.6,4742.5,0.159]
[1759842235352,0.37927,4742.6,4742.0,0.5541]
[1759842235353,0.37931,4742.1,4742.0,0.5541]
[1759842235559,4.26671834,4742.1,4742.0,0.159]
[1759842235764,12.05613201,4742.1,4742.0,0.159]
[1759842235962,0.37935,4741.6,4741.5,0.1602]
[1759842236164,4.26675834,4741.6,4741.5,0.1602]
[1759842236362,7.05617201,4741.6,4741.5,0.1602]
[1759842237158,6.67682201,4741.6,4741.5,0.5553]
[1759842237966,6.67682201,4741.6,4740.7,0.37942]
[1759842238266,0.46660834,4741.5,4740.9,0.3794]
[1759842238463,0.46660834,4741.5,4740.6,0.00161799]
[1759842238464,0.46660834,4741.5,4741.1,0.37938]
[1759842238670,0.46660834,4741.5,4740.6,3.20941799]
[1759842238867,3.4208,4741.6,4740.6,3.20941799]
[1759842239063,0.46758102,4741.5,4740.6,3.20941799]
[1759842239364,3.4208,4741.6,4740.6,3.20941799]
[1759842239365,3.2078,4741.6,4740.6,3.20941799]
[1759842239768,3.2078,4741.6,4741.4,0.37936]
[1759842240364,3.2078,4741.6,4741.2,0.37938]
[1759842240562,3.2078,4741.6,4741.3,0.37937]
[1759842240969,3.2078,4741.6,4741.4,0.37936]
[1759842241162,3.2078,4742.2,4741.3,0.94843]
[1759842241358,3.2078,4742.2,4741.4,0.94842]
[1759842241564,3.2078,4742.2,4742.1,0.37931]
[1759842241768,3.2078,4742.2,4741.9,0.37932]
[1759842242266,3.2078,4742.2,4742.0,0.37931]
[1759842242467,3.2078,4742.2,4741.8,0.59233]
[1759842242971,3.2078,4742.2,4741.9,0.37932]
[1759842243269,3.2078,4742.2,4742.0,0.37931]
[1759842243866,0.948,4743.6,4741.9,0.37932]
[1759842243867,0.37927,4742.6,4741.9,0.37932]
[1759842244264,3.2078,4742.7,4742.0,0.52331]
[1759842244462,3.2078,4742.7,4742.1,0.213]
[1759842244659,3.2078,4742.7,4742.0,0.37931]
[1759842244864,3.2078,4742.7,4742.3,0.37929]
[1759842245365,3.2078,4742.7,4742.4,0.37928]
[1759842245564,3.2078,4742.7,4742.2,0.37929]
[1759842245961,3.2078,4742.7,4742.3,0.37929]
[1759842246161,3.2078,4742.7,4742.1,0.213]
[1759842246567,3.58706,4742.7,4742.1,0.213]
[1759842246773,3.2078,4742.7,4742.1,0.213]
[1759842247274,3.2078,4742.2,4742.1,0.213]
[1759842247573,3.2078,4742.2,4741.8,0.37933]
[1759842248672,3.2078,4742.2,4742.0,0.37931]
[1759842249876,3.2078,4742.2,4741.8,0.37933]
[1759842250179,3.2078,4742.2,4741.9,0.37932]
[1759842250778,3.2078,4742.2,4741.3,1.16144]
[1759842251072,3.2078,4742.2,4741.3,0.213]
[1759842251277,3.2078,4741.7,4741.5,0.37935]
[1759842251681,3.2078,4741.7,4741.3,0.37936]
[1759842252075,0.37935,4741.6,4740.9,0.3794]
[1759842252281,3.15424387,4741.6,4741.0,0.37939]
[1759842252480,0.37936,4741.5,4740.8,0.37941]
[1759842252681,0.68076613,4741.4,4740.6,3.42241799]
[1759842252879,0.84715034,4741.3,4740.6,3.42241799]
[1759842253076,0.213,4741.4,4740.7,0.37942]
[1759842253277,0.46768478,4741.3,4740.7,0.37942]
[1759842253577,0.213,4741.4,4740.8,0.37941]
[1759842253778,0.46768246,4741.3,4740.9,0.3794]
[1759842254085,0.213,4741.4,4740.9,0.3794]
[1759842254278,0.4676132,4741.3,4740.9,0.3794]
[1759842254477,0.213,4741.4,4740.9,0.3794]
[1759842254688,0.46763845,4741.3,4741.0,0.37939]
[1759842254988,2.79929973,4741.5,4740.6,3.42241799]
[1759842255287,0.4676373,4741.4,4741.1,0.37939]
[1759842255581,0.4676373,4741.4,4741.0,0.37939]
[1759842255582,2.79929973,4741.4,4741.0,0.37939]
[1759842255782,2.79929973,4741.5,4741.0,0.37939]
[1759842255984,0.46747719,4741.4,4741.0,0.37939]
[1759842256182,2.7483575,4741.5,4740.8,0.37941]
[1759842256382,0.46749806,4741.4,4741.0,0.37939]
[1759842256581,2.7483575,4741.5,4741.1,0.37938]
[1759842256790,0.46749722,4741.4,4740.6,3.42241799]
[1759842256988,3.80015,4741.7,4740.6,3.42241799]
[1759842257189,3.17798029,4741.6,4740.6,3.42241799]
[1759842257487,3.2078,4741.7,4740.6,3.42241799]
[1759842257680,3.2078,4742.2,4741.1,4.15627]
[1759842257883,3.2078,4742.2,4742.0,0.37931]
[1759842258594,3.2078,4742.7,4742.4,0.37928]
[1759842258885,0.4675691,4742.6,4742.3,0.37929]
[1759842259185,0.4675691,4742.5,4742.3,0.37929]
[1759842259382,0.4675691,4742.4,4742.3,0.37929]
[1759842259581,3.2078,4742.7,4742.4,0.37928]
[1759842259781,0.46758103,4742.6,4742.4,0.37928]
[1759842259982,0.46758103,4742.5,4742.4,0.37928]
[1759842261993,0.46758103,4742.5,4741.9,0.213]
[1759842262192,0.46758103,4742.4,4741.9,0.213]
[1759842262389,3.2078,4742.2,4742.0,0.37931]
[1759842262696,2.79779971,4742.6,4742.4,0.37928]
[1759842262889,3.2078,4742.7,4742.5,0.37927]
[1759842263092,0.46771412,4742.6,4742.5,0.37927]
[1759842263290,0.46771412,4742.6,4742.3,0.37929]
[1759842263488,0.46771412,4742.5,4741.9,0.213]
[1759842263689,3.2078,4742.7,4742.3,0.37929]
[1759842263992,0.46774909,4742.6,4742.4,0.37928]
[1759842264192,0.46774909,4742.5,4742.2,0.3793]
[1759842264393,3.2078,4742.7,4742.2,0.3793]
[1759842264593,0.46778385,4742.6,4742.2,0.3793]
[1759842264796,0.46778385,4742.5,4741.5,3.2078]
[1759842265088,0.46778385,4742.4,4742.1,0.37931]
[1759842265294,3.4208,4742.7,4742.1,0.37931]
[1759842265596,0.46778041,4742.6,4742.2,0.3793]
[1759842265795,0.46778041,4742.5,4742.2,0.3793]
[1759842265992,0.46778041,4742.4,4742.2,0.3793]
[1759842266294,0.46778041,4742.4,4741.6,1.16136]
[1759842266295,3.2078,4742.7,4742.1,0.94828]
[1759842266491,0.4677983,4742.6,4742.4,0.37928]
[1759842266687,3.2078,4742.7,4742.5,0.37927]
[1759842266893,3.2078,4743.2,4743.0,0.37924]
[1759842267092,0.46774836,4743.1,4743.0,0.37924]
[1759842267292,3.2078,4743.2,4743.0,0.54104]
[1759842267493,3.2078,4743.2,4743.1,0.4032]
[1759842268399,3.2078,4743.2,4743.1,0.6162]
[1759842268597,8.67542961,4743.2,4743.1,0.4032]
[1759842268895,11.62813669,4743.2,4743.1,0.4032]
[1759842269495,6.41513669,4743.2,4743.1,0.4032]
[1759842273605,0.46762961,4743.2,4743.1,0.4032]
[1759842273801,0.0025456,4743.9,4743.8,0.4032]
[1759842274203,0.47003375,4743.9,4743.8,0.4032]
[1759842274999,0.0025456,4743.9,4743.8,0.4032]
[1759842275205,0.0025456,4743.9,4743.8,8.611]
[1759842275403,0.0025456,4743.9,4743.8,5.4032]
[1759842277109,0.0025456,4743.9,4743.8,0.4032]
[1759842277407,0.0025456,4743.9,4743.8,0.6162]
[1759842278807,0.0025456,4743.9,4743.8,0.4032]
[1759842279010,0.0025456,4743.9,4743.8,0.6162]
[1759842279809,0.0025456,4743.9,4743.8,0.4032]
[1759842286419,3.2078,4744.7,4744.6,0.4189]
[1759842286619,3.67376394,4744.7,4744.6,0.4189]
[1759842287512,3.67595958,4744.7,4744.6,0.42117177]
[1759842290927,0.00219564,4744.7,4744.6,0.42117177]
[1759842292229,3.20999564,4744.7,4744.6,0.42117177]
[1759842293534,11.67829739,4744.7,4744.6,0.42117177]
[1759842293930,11.46629739,4744.7,4744.6,0.42117177]
[1759842294331,11.67829739,4744.7,4744.6,0.42117177]
[1759842295629,11.46629739,4744.7,4744.6,0.42117177]
[1759842295830,11.67829739,4744.7,4744.6,0.42117177]
[1759842297037,6.46629739,4744.7,4744.6,0.42117177]
[1759842297240,6.67829739,4744.7,4744.6,0.42117177]
[1759842301434,7.05739739,4744.7,4744.6,0.42117177]
[1759842303342,6.84539739,4744.7,4744.6,0.42117177]
[1759842303634,7.05739739,4744.7,4744.6,0.42117177]
[1759842304043,0.94778,4744.6,4744.0,0.1517]
[1759842304337,3.58695,4744.1,4744.0,0.1517]
[1759842304530,4.26522841,4744.1,4744.0,0.1517]
[1759842304842,6.967047,4744.1,4744.0,0.1517]
[1759842305236,6.967047,4744.1,4744.0,0.15433511]
[1759842305833,0.37923,4743.1,4743.0,0.1618]
[1759842306044,4.26530841,4743.1,4743.0,0.5531]
[1759842306230,7.05359973,4743.1,4743.0,0.5531]
[1759842306844,7.05359973,4743.1,4743.0,0.55581368]
[1759842307239,0.37926,4742.7,4742.6,0.3913]
[1759842307540,1.05753841,4742.7,4742.6,0.3913]
[1759842307732,3.8361935,4742.7,4742.6,0.3913]
[1759842307936,0.3793,4742.2,4742.1,0.3913]
[1759842308140,3.7991,4742.2,4742.1,0.3913]
[1759842308440,6.99188827,4742.2,4742.1,0.39315511]
[1759842309534,6.99188827,4742.2,4742.0,0.1651]
[1759842309735,0.37933,4741.8,4741.7,0.3913]
[1759842309935,0.46627841,4741.8,4741.7,0.3913]
[1759842310146,3.44581156,4741.8,4741.7,0.3913]
[1759842310633,3.44581156,4741.8,4741.7,0.39303838]
[1759842311538,3.44581156,4741.8,4741.7,0.00173838]
[1759842312338,0.37939,4741.1,4741.0,0.5504]
[1759842312544,3.79919,4741.1,4741.0,0.5504]
[1759842312738,6.55105465,4741.1,4741.0,0.5504]
[1759842312937,7.01653389,4741.1,4741.0,0.5504]
[1759842313140,7.01894923,4741.1,4741.0,0.55207232]
[1759842313335,6.55346999,4741.1,4741.0,0.55207232]
[1759842313544,0.37942,4740.7,4740.6,0.408]